bitfinex/quotes_BTCUSD_20251009
["timestamp","ask_amount","ask_price","bid_price","bid_amount"]
[1760020320901,0.95747914,121590.0,121580.0,0.001]
[1760020321104,0.35046934,121590.0,121580.0,0.001]
[1760020321326,0.35046934,121590.0,121580.0,0.19368]
[1760020321540,0.09065533,121590.0,121580.0,0.21819]
[1760020321759,0.00753327,121590.0,121580.0,0.41727074]
[1760020321964,0.02282186,121600.0,121590.0,0.16448721]
[1760020322172,0.18729554,121600.0,121590.0,0.21710721]
[1760020322378,0.17200695,121600.0,121590.0,0.07713]
[1760020322601,0.19512649,121600.0,121590.0,0.07713]
[1760020322811,0.21045649,121600.0,121590.0,0.24244]
[1760020323025,0.21045649,121600.0,121590.0,0.001]
[1760020323235,0.93028033,121600.0,121590.0,0.001]
[1760020323649,0.16448721,121590.0,121580.0,0.42393992]
[1760020323867,0.00753327,121590.0,121580.0,0.18253992]
[1760020324080,0.16448721,121590.0,121580.0,0.04255]
[1760020324292,0.16450074,121580.0,121570.0,0.01804]
[1760020324508,0.16451427,121570.0,121560.0,0.00015196]
[1760020324723,0.18942427,121570.0,121560.0,0.00015196]
[1760020324935,0.78685407,121570.0,121560.0,0.24155196]
[1760020325155,0.17409427,121570.0,121560.0,0.28410196]
[1760020325571,0.17409427,121570.0,121560.0,0.44862976]
[1760020325750,0.17409427,121570.0,121560.0,0.28410196]
[1760020325960,0.18942427,121570.0,121560.0,0.25955196]
[1760020326170,0.92172784,121570.0,121560.0,0.00115196]
[1760020326381,0.92172784,121570.0,121560.0,0.24151196]
[1760020326594,0.92172784,121570.0,121560.0,0.24351196]
[1760020326799,0.92172784,121570.0,121560.0,0.24451196]
[1760020326999,0.92172784,121570.0,121560.0,0.00215196]
[1760020327207,0.92172784,121570.0,121560.0,0.00015196]
[1760020327617,0.92172784,121570.0,121560.0,0.00115196]
[1760020328367,0.31471804,121570.0,121560.0,0.00115196]
[1760020328567,0.93871647,121570.0,121560.0,0.00115196]
[1760020328785,0.32973667,121570.0,121560.0,0.00115196]
[1760020328997,0.93871647,121570.0,121560.0,0.00115196]
[1760020329394,0.93871647,121570.0,121560.0,0.00015196]
[1760020329618,0.34128667,121570.0,121560.0,0.00015196]
[1760020329827,0.92369784,121570.0,121560.0,0.00115196]
[1760020330173,1.26369784,121570.0,121560.0,0.00015196]
[1760020330379,0.16456841,121530.0,121520.0,0.01804]
[1760020330621,0.17627057,121530.0,121520.0,0.01804]
[1760020330957,0.17627057,121530.0,121520.0,0.28291]
[1760020331114,0.17627057,121530.0,121520.0,0.44749196]
[1760020331319,0.17627057,121530.0,121520.0,0.20617196]
[1760020331498,0.00015216,121530.0,121520.0,0.24420196]
[1760020331726,0.00015216,121530.0,121520.0,0.57104196]
[1760020331927,0.00015216,121530.0,121520.0,0.33076196]
[1760020332157,0.00015216,121530.0,121520.0,0.57104196]
[1760020332359,0.00015216,121530.0,121520.0,0.41288402]
[1760020332573,0.00015216,121530.0,121520.0,0.72415372]
[1760020332787,0.00015216,121530.0,121520.0,0.72315372]
[1760020332987,0.00015216,121530.0,121520.0,0.72115372]
[1760020333217,0.00015216,121530.0,121520.0,0.72215372]
[1760020333395,0.00015216,121530.0,121520.0,0.39431372]
[1760020333592,0.00015216,121530.0,121520.0,0.41488402]
[1760020333796,0.00015216,121530.0,121520.0,0.57304196]
[1760020334183,0.00015216,121530.0,121520.0,0.24420196]
[1760020334516,0.00015216,121530.0,121520.0,0.33176196]
[1760020334882,0.00015216,121530.0,121520.0,0.57304196]
[1760020335120,0.00015216,121530.0,121520.0,0.40914795]
[1760020335298,0.00015216,121530.0,121520.0,0.64942795]
[1760020335738,0.00015216,121530.0,121520.0,0.64742795]
[1760020335995,0.00015216,121530.0,121520.0,0.64738795]
[1760020336203,0.00015216,121530.0,121520.0,0.49227001]
[1760020336413,0.00015216,121530.0,121520.0,0.73351001]
[1760020336595,0.00015216,121530.0,121520.0,0.73151001]
[1760020336801,0.00015216,121530.0,121520.0,0.73051001]
[1760020337010,0.00015216,121530.0,121520.0,0.73251001]
[1760020337231,0.02281006,121600.0,121570.0,0.00822571]
[1760020337437,0.02281006,121600.0,121580.0,0.16450074]
[1760020337438,0.19897674,121600.0,121580.0,0.16450074]
[1760020337657,0.5974298,121590.0,121580.0,0.0178]
[1760020337861,0.16450074,121580.0,121570.0,0.08556]
[1760020338068,0.76193054,121580.0,121570.0,0.32856]
[1760020338274,0.18296074,121580.0,121560.0,0.18230224]
[1760020338507,0.18296074,121580.0,121570.0,0.243]
[1760020338699,0.18296074,121580.0,121570.0,0.40747427]
[1760020338929,0.18296074,121580.0,121550.0,0.30589457]
[1760020338930,0.16451427,121570.0,121550.0,0.18230457]
[1760020339136,0.09466206,121570.0,121560.0,0.1645278]
[1760020339350,0.27763633,121570.0,121560.0,0.4084878]
[1760020339567,0.25917633,121570.0,121560.0,0.4084878]
[1760020339787,0.27763633,121570.0,121560.0,0.1645278]
[1760020340260,0.09466206,121570.0,121560.0,0.1645278]
[1760020340526,0.27763633,121570.0,121560.0,0.1645278]
[1760020340965,0.27763633,121570.0,121560.0,0.001]
[1760020341177,0.27763633,121570.0,121560.0,0.1655278]
[1760020341484,0.11312206,121570.0,121560.0,0.1655278]
[1760020341696,0.11407206,121570.0,121560.0,0.1850778]
[1760020341918,0.27858633,121570.0,121560.0,0.4277978]
[1760020342128,0.27858633,121570.0,121560.0,0.24372]
[1760020342340,0.27858633,121570.0,121560.0,0.4329478]
[1760020342550,0.27858633,121570.0,121560.0,0.4082478]
[1760020342826,0.27858633,121570.0,121560.0,0.001]
[1760020343042,1.30200829,121570.0,121560.0,0.001]
[1760020343281,1.37249046,121570.0,121560.0,0.001]
[1760020343708,1.61537046,121570.0,121560.0,0.001]
[1760020343924,1.61537046,121570.0,121530.0,0.0302]
[1760020343925,0.16455487,121540.0,121530.0,0.0302]
[1760020344148,0.16455487,121540.0,121530.0,0.06619503]
[1760020344361,0.18396487,121540.0,121530.0,0.06619503]
[1760020344593,0.16455487,121540.0,121530.0,0.25031344]
[1760020344805,0.16455487,121540.0,121530.0,0.32854503]
[1760020345040,0.16455487,121540.0,121530.0,0.49311344]
[1760020345293,0.16455487,121540.0,121530.0,0.28705]
[1760020345512,0.16455487,121540.0,121530.0,0.42791841]
[1760020345746,0.16455487,121540.0,121530.0,0.42691841]
[1760020345959,0.16455487,121540.0,121530.0,0.26535]
[1760020346167,0.16455487,121540.0,121530.0,0.01955]
[1760020346366,0.16455487,121540.0,121530.0,0.18411841]
[1760020346582,0.74094669,121550.0,121530.0,0.45441841]
[1760020346728,0.16455487,121540.0,121530.0,0.45441841]
[1760020347074,0.18396487,121540.0,121530.0,0.42971841]
[1760020347967,0.2476635,121550.0,121540.0,0.16455487]
[1760020348178,0.8645033,121550.0,121540.0,0.16455487]
[1760020348379,0.10253206,121550.0,121540.0,0.16455487]
[1760020348774,0.10253206,121550.0,121540.0,0.18410487]
[1760020348909,0.10253206,121550.0,121540.0,0.20880487]
[1760020349123,0.5974298,121560.0,121550.0,0.16454134]
[1760020349124,0.34,121560.0,121550.0,0.16454134]
[1760020349337,0.08312206,121560.0,121550.0,0.20879134]
[1760020349768,0.10253206,121560.0,121550.0,0.04425]
[1760020349966,0.86448966,121560.0,121550.0,0.2424]
[1760020350168,0.86448966,121560.0,121540.0,0.1655542]
[1760020350169,0.71209186,121560.0,121540.0,0.1655542]
[1760020350399,0.79208866,121560.0,121550.0,0.001]
[1760020351022,0.77995866,121560.0,121550.0,0.16554134]
[1760020351254,0.79208866,121560.0,121550.0,0.001]
[1760020351403,0.77995866,121560.0,121550.0,0.001]
[1760020351631,0.77995866,121560.0,121540.0,0.26191]
[1760020351985,1.03440866,121560.0,121550.0,0.16454134]
[1760020352190,0.32536206,121560.0,121550.0,0.18924134]
[1760020352396,0.01154,121570.0,121560.0,0.1645278]
[1760020352603,0.01169233,121570.0,121560.0,0.4624678]
[1760020352803,0.01169233,121570.0,121560.0,0.3304878]
[1760020352804,0.00015233,121570.0,121560.0,0.3304878]
[1760020353048,0.00015233,121570.0,121560.0,0.5727678]
[1760020353260,0.24456111,121570.0,121540.0,0.001]
[1760020353475,0.24456111,121570.0,121520.0,0.00694421]
[1760020353476,0.50456841,121530.0,121520.0,0.00694421]
[1760020353693,1.28462362,121530.0,121520.0,0.00694421]
[1760020353895,1.6557559,121530.0,121520.0,0.00694421]
[1760020354112,1.295644,121530.0,121520.0,0.00694421]
[1760020354320,1.47313049,121530.0,121520.0,0.00694421]
[1760020354517,1.31185255,121530.0,121520.0,0.00694421]
[1760020354742,1.55621255,121530.0,121520.0,0.00745165]
[1760020355638,0.71442275,121530.0,121520.0,0.00745165]
[1760020355859,1.55613255,121530.0,121520.0,0.00745165]
[1760020356037,1.55713255,121530.0,121520.0,0.00745165]
[1760020356388,1.57219502,121530.0,121520.0,0.00745165]
[1760020356620,1.40791182,121530.0,121520.0,0.00745165]
[1760020356863,1.41544264,121530.0,121520.0,0.00745165]
[1760020357071,1.65207182,121530.0,121520.0,0.00745165]
[1760020357780,1.40791182,121530.0,121520.0,0.00745165]
[1760020358200,1.65195182,121530.0,121520.0,0.00745165]
[1760020358452,1.57195502,121530.0,121520.0,0.00745165]
[1760020359404,1.32791502,121530.0,121520.0,0.00745165]
[1760020359636,1.57191502,121530.0,121520.0,0.00745165]
[1760020359865,1.57943833,121530.0,121520.0,0.00745165]
[1760020360104,1.5794225,121530.0,121520.0,0.00745165]
[1760020360310,1.6592593,121530.0,121520.0,0.00745165]
[1760020360525,1.6592193,121530.0,121520.0,0.00745165]
[1760020361131,1.4455712,121530.0,121520.0,0.00745165]
[1760020361283,1.6893712,121530.0,121520.0,0.00745165]
[1760020361483,1.4455712,121530.0,121520.0,0.00745165]
[1760020361681,1.6892912,121530.0,121520.0,0.00745165]
[1760020362516,1.4455712,121530.0,121520.0,0.00745165]
[1760020362696,1.6892912,121530.0,121520.0,0.00745165]
[1760020363678,1.3354225,121530.0,121520.0,0.00745165]
[1760020363912,1.57145919,121530.0,121520.0,0.00745165]
[1760020364121,1.5714321,121530.0,121520.0,0.00745165]
[1760020364422,1.3278721,121530.0,121520.0,0.00745165]
[1760020364623,0.9561921,121530.0,121520.0,0.03134165]
[1760020364829,1.1997121,121530.0,121520.0,0.00745165]
[1760020364965,0.9883021,121530.0,121520.0,0.00745165]
[1760020365156,0.94117255,121530.0,121520.0,0.00745165]
[1760020365765,0.94117255,121530.0,121520.0,0.21464361]
[1760020366302,0.94017255,121530.0,121520.0,0.21464361]
[1760020366474,0.87902027,121530.0,121520.0,0.21464361]
[1760020366842,0.71445186,121530.0,121520.0,0.21464361]
[1760020367047,0.17718563,121550.0,121530.0,0.16456841]
[1760020367246,0.09576568,121550.0,121540.0,0.16455487]
[1760020367458,0.28557702,121550.0,121530.0,0.46600841]
[1760020367664,0.5974298,121540.0,121530.0,0.46600841]
[1760020367807,0.85773682,121550.0,121530.0,0.46600841]
[1760020368032,0.85773682,121550.0,121540.0,0.20716487]
[1760020368221,0.61007342,121550.0,121540.0,0.20716487]
[1760020368421,0.77461476,121550.0,121540.0,0.45048487]
[1760020368711,0.16455487,121540.0,121530.0,0.01872]
[1760020368917,0.25476167,121540.0,121520.0,0.27634363]
[1760020369094,0.77219467,121540.0,121530.0,0.40880841]
[1760020369295,0.17476487,121540.0,121530.0,0.18945841]
[1760020369433,0.77219467,121540.0,121530.0,0.45037841]
[1760020369639,0.88058673,121540.0,121530.0,0.40776841]
[1760020369856,0.6076398,121540.0,121530.0,0.45129841]
[1760020370071,0.77219467,121540.0,121530.0,0.45129841]
[1760020370342,0.77219467,121540.0,121530.0,0.20817841]
[1760020370531,0.17476487,121540.0,121530.0,0.45129841]
[1760020370757,0.79746467,121540.0,121530.0,0.45129841]
[1760020370960,0.79746467,121540.0,121530.0,0.24404]
[1760020371105,0.16456841,121530.0,121520.0,0.02617165]
[1760020371520,0.84705691,121530.0,121520.0,0.00745165]
[1760020371767,0.93017897,121530.0,121520.0,0.00745165]
[1760020372140,0.93017897,121530.0,121520.0,0.25045165]
[1760020372351,0.90250027,121530.0,121520.0,0.25145165]
[1760020372558,0.90250027,121530.0,121520.0,0.00845165]
[1760020373180,0.90250027,121530.0,121520.0,0.00745165]
[1760020373576,0.90250027,121530.0,121520.0,0.25037165]
[1760020374240,0.90250027,121530.0,121520.0,0.00745165]
[1760020374876,0.87039027,121530.0,121520.0,0.00745165]
[1760020375113,0.90250027,121530.0,121520.0,0.00745165]
[1760020375354,0.87039027,121530.0,121520.0,0.00745165]
[1760020375587,0.87039027,121530.0,121520.0,0.25029165]
[1760020375830,0.02527,121530.0,121520.0,0.03134165]
[1760020376059,0.76198524,121540.0,121530.0,0.16456841]
[1760020376286,0.76198524,121540.0,121530.0,0.20717841]
[1760020376518,0.5974298,121540.0,121530.0,0.24649841]
[1760020376766,0.59794342,121550.0,121540.0,0.16455487]
[1760020377033,0.59794342,121550.0,121540.0,0.24648487]
[1760020377259,0.78775476,121550.0,121540.0,0.04261]
[1760020377660,0.78775476,121550.0,121540.0,0.28521]
[1760020377820,0.76248476,121550.0,121540.0,0.28521]
[1760020378019,0.76248476,121550.0,121540.0,0.48908487]
[1760020378262,0.591634,121550.0,121540.0,0.48908487]
[1760020378840,0.591634,121550.0,121540.0,0.24648487]
[1760020379048,0.16505496,121550.0,121540.0,0.48904487]
[1760020379248,0.616904,121550.0,121540.0,0.33670333]
[1760020379426,0.616904,121550.0,121540.0,0.28509]
[1760020379809,0.616904,121550.0,121540.0,0.44956487]
[1760020380021,0.616904,121550.0,121540.0,0.04261]
[1760020380244,0.16455487,121540.0,121530.0,0.01872]
[1760020380456,0.16456841,121530.0,121520.0,0.02617165]
[1760020380661,0.71166951,121530.0,121520.0,0.00745165]
[1760020380884,0.68639951,121530.0,121520.0,0.27374165]
[1760020381095,0.42657904,121530.0,121520.0,0.25396361]
[1760020381315,0.61199106,121550.0,121530.0,0.16455623]
[1760020381316,0.59113391,121540.0,121530.0,0.16455623]
[1760020381517,0.59113391,121540.0,121530.0,0.43192623]
[1760020381518,0.42657904,121540.0,121530.0,0.43192623]
[1760020381653,0.42657904,121540.0,121530.0,0.48996623]
[1760020382486,0.42657904,121540.0,121530.0,0.48896623]
[1760020383291,0.00051362,121550.0,121540.0,0.16455487]
[1760020383490,0.00051362,121550.0,121540.0,0.46491487]
[1760020383691,0.42709266,121550.0,121540.0,0.48880487]
[1760020383916,0.616904,121550.0,121530.0,0.18327623]
[1760020384113,0.19032496,121550.0,121540.0,0.43076487]
[1760020384456,0.00051362,121550.0,121540.0,0.24648487]
[1760020384896,0.00051362,121550.0,121540.0,0.24748487]
[1760020385124,0.00051362,121550.0,121540.0,0.48972487]
[1760020385331,0.42709266,121550.0,121540.0,0.24648487]
[1760020385515,0.42709266,121550.0,121540.0,0.33204487]
[1760020385742,0.42709266,121550.0,121540.0,0.57528487]
[1760020385955,0.42709266,121550.0,121540.0,0.53596487]
[1760020386357,0.42709266,121550.0,121540.0,0.57528487]
[1760020386568,0.42709266,121550.0,121540.0,0.29372487]
[1760020386753,0.616904,121550.0,121540.0,0.45024487]
[1760020387259,0.616904,121550.0,121540.0,0.16555487]
[1760020387500,0.616904,121550.0,121540.0,0.40763487]
[1760020387711,0.00051362,121550.0,121540.0,0.16555487]
[1760020387929,0.00051362,121550.0,121540.0,0.24748487]
[1760020388133,0.42709266,121550.0,121540.0,0.45024487]
[1760020388395,0.42709266,121550.0,121540.0,0.20816487]
[1760020388608,0.16505496,121550.0,121540.0,0.44924487]
[1760020388819,0.616904,121550.0,121540.0,0.42535487]
[1760020389002,0.591634,121550.0,121540.0,0.45024487]
[1760020389207,0.42709266,121550.0,121540.0,0.45024487]
[1760020389406,0.616904,121550.0,121540.0,0.45024487]
[1760020389655,0.16505496,121550.0,121540.0,0.20870487]
[1760020389841,0.42709266,121550.0,121540.0,0.20870487]
[1760020389988,0.42709266,121550.0,121540.0,0.45062487]
[1760020390188,0.42709266,121550.0,121540.0,0.44962487]
[1760020390641,0.591634,121550.0,121540.0,0.45062487]
[1760020390972,0.591634,121550.0,121540.0,0.45050487]
[1760020391179,0.617524,121550.0,121540.0,0.45050487]
[1760020391611,0.42709266,121550.0,121540.0,0.45050487]
[1760020391834,0.5143079,121560.0,121540.0,0.52606198]
[1760020392036,0.42657904,121550.0,121540.0,0.52606198]
[1760020392467,0.42657904,121550.0,121540.0,0.56229198]
[1760020393048,0.59743029,121560.0,121550.0,0.16454134]
[1760020393248,1.02400933,121560.0,121550.0,0.44904134]
[1760020393471,0.34,121560.0,121550.0,0.24363134]
[1760020393693,0.7670926,121560.0,121550.0,0.48523134]
[1760020393879,0.4359026,121560.0,121550.0,0.44900134]
[1760020394304,0.4270926,121560.0,121550.0,0.48523134]
[1760020394627,0.4270926,121560.0,121550.0,0.58363134]
[1760020394628,0.00051356,121560.0,121550.0,0.58363134]
[1760020394754,0.00051356,121560.0,121550.0,0.90198196]
[1760020394961,0.00051356,121560.0,121550.0,0.56198196]
[1760020395305,0.00051356,121560.0,121550.0,0.64770196]
[1760020395960,0.00051356,121560.0,121550.0,0.40598196]
[1760020396146,0.00051356,121560.0,121550.0,0.64766196]
[1760020396359,0.6004304,121560.0,121550.0,0.20740134]
[1760020396570,0.6263204,121560.0,121550.0,0.08656]
[1760020396775,0.6263204,121560.0,121550.0,0.49274134]
[1760020397004,0.4270926,121560.0,121550.0,0.33019134]
[1760020397229,0.4270926,121560.0,121550.0,0.57179134]
[1760020397438,0.00051356,121560.0,121550.0,0.40469796]
[1760020397648,0.00051356,121560.0,121550.0,0.64629796]
[1760020398596,0.6175104,121560.0,121540.0,0.14051]
[1760020398800,0.6175104,121560.0,121550.0,0.40706134]
[1760020398801,0.19093136,121560.0,121550.0,0.40706134]
[1760020399208,0.00051356,121560.0,121550.0,0.48515134]
[1760020399638,0.00051356,121560.0,121550.0,0.48615134]
[1760020399835,0.4270926,121560.0,121550.0,0.48615134]
[1760020400035,0.4270926,121560.0,121550.0,0.56064955]
[1760020400271,0.6175104,121560.0,121550.0,0.04286]
[1760020400613,0.6175104,121560.0,121550.0,0.44992134]
[1760020400768,0.6175104,121560.0,121550.0,0.48615134]
[1760020400769,0.4270926,121560.0,121550.0,0.48615134]
[1760020401186,0.00051356,121560.0,121550.0,0.24463134]
[1760020401363,0.4270926,121560.0,121550.0,0.48615134]
[1760020401767,0.67755213,121560.0,121550.0,0.01943]
[1760020401946,0.70063246,121560.0,121550.0,0.24252]
[1760020402146,0.70063246,121560.0,121550.0,0.001]
[1760020402350,0.67474246,121560.0,121550.0,0.26077849]
[1760020402565,0.00051356,121560.0,121550.0,0.24363134]
[1760020402927,0.00051356,121560.0,121550.0,0.24463134]
[1760020403138,0.00051356,121560.0,121550.0,0.53749792]
[1760020403996,0.00051356,121560.0,121550.0,0.53649792]
[1760020405209,0.00051356,121560.0,121550.0,0.29497792]
[1760020405377,0.00051356,121560.0,121550.0,0.62201792]
[1760020405575,0.00051356,121560.0,121550.0,0.62301792]
[1760020406247,0.00051356,121560.0,121550.0,0.38153792]
[1760020406450,0.00051356,121560.0,121550.0,0.62301792]
[1760020406764,0.00051356,121560.0,121550.0,0.29597792]
[1760020406982,0.6296404,121560.0,121550.0,0.04386]
[1760020407193,0.6296404,121560.0,121550.0,0.24248]
[1760020407400,0.6607904,121560.0,121550.0,0.001]
[1760020407615,0.74391246,121560.0,121550.0,0.24248]
[1760020407838,0.31733342,121560.0,121550.0,0.001]
[1760020408047,0.74391246,121560.0,121550.0,0.24248]
[1760020408244,0.74391246,121560.0,121530.0,0.05632305]
[1760020408245,0.16454134,121550.0,121530.0,0.05632305]
[1760020408489,0.16455487,121540.0,121530.0,0.18466093]
[1760020408715,0.16455487,121540.0,121530.0,0.24532093]
[1760020408941,0.16455487,121540.0,121530.0,0.08075305]
[1760020409115,0.59113391,121540.0,121530.0,0.08075305]
[1760020409315,1.05604071,121540.0,121530.0,0.00237305]
[1760020409521,0.74373373,121540.0,121530.0,0.00237305]
[1760020409725,1.17031277,121540.0,121530.0,0.00237305]
[1760020409923,1.17031277,121540.0,121530.0,0.00137305]
[1760020410284,1.41179277,121540.0,121530.0,0.00237305]
[1760020410858,1.17031277,121540.0,121530.0,0.00237305]
[1760020411019,1.41179277,121540.0,121530.0,0.00237305]
[1760020411461,1.41179277,121540.0,121530.0,0.00137305]
[1760020411659,1.45698026,121540.0,121530.0,0.00137305]
[1760020411905,0.67877252,121540.0,121530.0,0.00137305]
[1760020412111,1.30064597,121540.0,121530.0,0.00137305]
[1760020412527,1.33179597,121540.0,121530.0,0.00137305]
[1760020412720,1.09031597,121540.0,121530.0,0.00137305]
[1760020412877,1.33183597,121540.0,121530.0,0.00137305]
[1760020413450,1.09031597,121540.0,121530.0,0.00137305]
[1760020413671,1.33179597,121540.0,121530.0,0.00137305]
[1760020413872,1.17031277,121540.0,121530.0,0.00137305]
[1760020414089,1.44198467,121540.0,121530.0,0.00137305]
[1760020414297,1.45701551,121540.0,121530.0,0.00137305]
[1760020414719,0.53472031,121530.0,121520.0,0.00607844]
[1760020414946,1.19600418,121530.0,121520.0,0.00607844]
[1760020415148,1.22189418,121530.0,121520.0,0.00607844]
[1760020415359,1.16748418,121530.0,121520.0,0.00607844]
[1760020415615,1.49456418,121530.0,121520.0,0.00607844]
[1760020415843,1.49556418,121530.0,121520.0,0.00607844]
[1760020416322,1.16848418,121530.0,121520.0,0.00607844]
[1760020416753,1.41000418,121530.0,121520.0,0.00607844]
[1760020417008,1.11749225,121530.0,121520.0,0.00607844]
[1760020417256,1.44457225,121530.0,121520.0,0.00607844]
[1760020417499,1.20305225,121530.0,121520.0,0.00607844]
[1760020417690,1.20505225,121530.0,121520.0,0.00607844]
[1760020418079,1.01997164,121530.0,121520.0,0.00607844]
[1760020418280,1.4568394,121530.0,121520.0,0.00607844]
[1760020419062,1.2153194,121530.0,121520.0,0.00607844]
[1760020419471,0.931161,121520.0,121510.0,0.00680955]
[1760020419684,1.45500986,121520.0,121510.0,0.00680955]
[1760020419897,1.45500986,121520.0,121500.0,4.2301188]
[1760020419898,0.5347474,121510.0,121500.0,4.2301188]
[1760020420133,1.57762434,121510.0,121500.0,4.2301188]
[1760020420392,1.85180434,121510.0,121500.0,4.2301188]
[1760020420612,1.86678972,121510.0,121500.0,4.2301188]
[1760020420861,1.01363164,121510.0,121500.0,4.23166041]
[1760020421074,1.71086972,121510.0,121500.0,4.23166041]
[1760020421329,1.95238972,121510.0,121500.0,4.23166041]
[1760020421564,1.71286972,121510.0,121500.0,4.23166041]
[1760020421764,1.95238972,121510.0,121500.0,4.23166041]
[1760020421977,1.95438972,121510.0,121500.0,4.23166041]
[1760020422197,1.54927292,121510.0,121500.0,4.23166041]
[1760020422439,1.87639292,121510.0,121500.0,4.23166041]
[1760020423039,1.87643292,121510.0,121500.0,4.23166041]
[1760020423274,1.6952577,121510.0,121500.0,4.23166041]
[1760020423499,1.08165962,121510.0,121500.0,4.23166041]
[1760020423722,2.0158145,121510.0,121500.0,4.23166041]
[1760020424205,2.0148145,121510.0,121500.0,4.23166041]
[1760020424436,1.7732545,121510.0,121500.0,4.23166041]
[1760020424685,2.0148145,121510.0,121500.0,4.23166041]
[1760020425100,2.0641645,121510.0,121500.0,4.23166041]
[1760020425323,2.0621645,121510.0,121500.0,4.23166041]
[1760020425745,1.8216045,121510.0,121500.0,4.23166041]
[1760020426081,2.0631645,121510.0,121500.0,4.23166041]
[1760020426311,2.0621645,121510.0,121500.0,4.23166041]
[1760020426604,2.0641645,121510.0,121500.0,4.23166041]
[1760020427340,2.0661645,121510.0,121500.0,4.23166041]
[1760020427579,1.84960449,121510.0,121500.0,3.69777321]
[1760020427850,2.09116449,121510.0,121500.0,3.59138678]
[1760020428270,2.12047975,121510.0,121500.0,3.59138678]
[1760020428733,2.3555113,121510.0,121500.0,3.59138678]
[1760020428959,2.4411113,121510.0,121500.0,3.59138678]
[1760020429902,2.17455131,121510.0,121500.0,3.59138678]
[1760020430126,1.7752545,121510.0,121500.0,3.59138678]
[1760020430378,1.32599009,121510.0,121500.0,3.59138678]
[1760020430606,1.14008676,121510.0,121500.0,3.59138678]
[1760020430832,0.81092676,121510.0,121500.0,3.59138678]
[1760020431052,1.01782676,121510.0,121500.0,3.59138678]
[1760020431264,0.77726676,121510.0,121500.0,3.59138678]
[1760020431450,0.83366878,121510.0,121500.0,3.59138678]
[1760020431646,1.07422878,121510.0,121500.0,3.59138678]
[1760020431777,1.07322878,121510.0,121500.0,3.59138678]
[1760020431976,0.64664974,121510.0,121500.0,3.59238678]
[1760020432188,0.12470744,121510.0,121500.0,3.75699583]
[1760020432397,0.01498538,121510.0,121500.0,3.84238583]
[1760020432606,0.02913314,121520.0,121510.0,0.1645955]
[1760020432812,0.4407268,121520.0,121510.0,0.2108055]
[1760020433027,0.01549314,121520.0,121510.0,0.4915455]
[1760020433247,0.01549314,121520.0,121510.0,0.5715423]
[1760020433248,0.00050776,121520.0,121510.0,0.5715423]
[1760020433685,0.00050776,121520.0,121510.0,0.41310436]
[1760020433900,0.00050776,121520.0,121510.0,0.65466436]
[1760020435082,0.00050776,121520.0,121510.0,0.41310436]
[1760020435519,0.00050776,121520.0,121510.0,0.65566436]
[1760020435948,0.00050776,121520.0,121510.0,0.41410436]
[1760020436168,0.00050776,121520.0,121510.0,0.65562436]
[1760020436758,0.00050776,121520.0,121510.0,0.65462436]
[1760020437220,0.00050776,121520.0,121510.0,0.65562436]
[1760020437426,0.00050776,121520.0,121510.0,0.41410436]
[1760020437635,0.00050776,121520.0,121510.0,0.65762436]
[1760020438213,0.00050776,121520.0,121510.0,0.65865202]
[1760020438424,0.00050776,121520.0,121510.0,0.41713202]
[1760020438646,0.00050776,121520.0,121510.0,0.65865202]
[1760020439092,0.0002249,121530.0,121520.0,0.1680742]
[1760020439305,0.0002249,121530.0,121520.0,0.25652907]
[1760020439513,0.0002249,121530.0,121520.0,0.2534642]
[1760020439728,0.0002249,121530.0,121520.0,0.4949442]
[1760020439945,0.0002249,121530.0,121520.0,0.5805442]
[1760020440124,0.0002249,121530.0,121520.0,0.2544642]
[1760020440362,0.88950557,121530.0,121520.0,0.1690742]
[1760020440580,1.34529237,121530.0,121520.0,0.00449224]
[1760020441012,1.34529237,121530.0,121520.0,0.00549224]
[1760020441013,1.36026447,121530.0,121520.0,0.00549224]
[1760020441439,1.36774898,121530.0,121520.0,0.00449224]
[1760020441700,1.36774898,121530.0,121520.0,0.00349224]
[1760020441701,1.46027485,121530.0,121520.0,0.00349224]
[1760020441920,1.70175485,121530.0,121520.0,0.00449224]
[1760020442142,1.35012615,121530.0,121520.0,0.00449224]
[1760020442365,1.30685164,121530.0,121520.0,0.00449224]
[1760020442799,1.35012764,121530.0,121520.0,0.00449224]
[1760020443026,1.35012764,121530.0,121520.0,0.24593224]
[1760020443256,1.35012764,121530.0,121520.0,0.00449224]
[1760020443468,1.43012444,121530.0,121520.0,0.00349224]
[1760020443671,1.67156444,121530.0,121520.0,0.00349224]
[1760020444488,1.67156444,121530.0,121520.0,0.00400603]
[1760020444735,1.67156105,121530.0,121520.0,0.00400603]
[1760020444949,1.35012425,121530.0,121520.0,0.00400603]
[1760020445135,1.38027615,121530.0,121520.0,0.00400603]
[1760020445385,1.62171615,121530.0,121520.0,0.00400603]
[1760020445609,1.38027615,121530.0,121520.0,0.00400603]
[1760020445849,1.70171295,121530.0,121520.0,0.00400603]
[1760020446071,1.46027295,121530.0,121520.0,0.00400603]
[1760020446281,1.70171295,121530.0,121520.0,0.00400603]
[1760020446678,1.46027295,121530.0,121520.0,0.00400603]
[1760020446894,1.70171295,121530.0,121520.0,0.00400603]
[1760020447389,0.58800564,121530.0,121520.0,0.16858799]
[1760020447636,0.91296028,121530.0,121520.0,0.21479799]
[1760020448086,0.95086028,121530.0,121520.0,0.00400603]
[1760020448310,1.29086028,121530.0,121520.0,0.00400603]
[1760020449011,1.53230028,121530.0,121520.0,0.00400603]
[1760020449236,1.61229708,121530.0,121520.0,0.00400603]
[1760020449950,1.61229708,121530.0,121520.0,0.00500603]
[1760020450176,1.37085708,121530.0,121520.0,0.00500603]
[1760020450403,1.61229708,121530.0,121520.0,0.00500603]
[1760020450625,1.46159934,121530.0,121520.0,0.00500603]
[1760020450853,1.4615952,121530.0,121520.0,0.00500603]
[1760020451298,1.7029952,121530.0,121520.0,0.00500603]
[1760020452690,1.4615952,121530.0,121520.0,0.00500603]
[1760020452890,1.7885964,121530.0,121520.0,0.00500603]
[1760020453108,1.4615964,121530.0,121520.0,0.00500603]
[1760020453313,1.70299816,121530.0,121520.0,0.00400603]
[1760020453522,1.70399816,121530.0,121520.0,0.00400603]
[1760020454283,1.46259816,121530.0,121520.0,0.00400603]
[1760020454526,1.70499816,121530.0,121520.0,0.00400603]
[1760020454943,1.46359816,121530.0,121520.0,0.00400603]
[1760020455370,1.70499816,121530.0,121520.0,0.00400603]
[1760020455802,0.5347474,121510.0,121500.0,3.58984517]
[1760020456007,1.38465732,121510.0,121500.0,3.59035293]
[1760020456215,1.62605732,121510.0,121500.0,3.59035293]
[1760020456426,0.64092581,121510.0,121500.0,3.59035293]
[1760020456645,0.27360581,121510.0,121500.0,3.80475198]
[1760020456857,0.27360581,121510.0,121500.0,3.88154293]
[1760020457074,0.64092581,121510.0,121500.0,3.88154293]
[1760020457251,0.64092581,121510.0,121500.0,4.04615198]
[1760020457503,0.72092261,121510.0,121500.0,3.88154293]
[1760020457924,1.35708281,121510.0,121500.0,3.59035293]
[1760020458130,1.38723471,121510.0,121500.0,3.59135293]
[1760020458349,1.6286449,121510.0,121500.0,3.59135293]